bitfinex/quotes_BTCUSD_20250114
["timestamp","ask_amount","ask_price","bid_price","bid_amount"]
[1736821933839,0.1102893,95179.0,95177.0,0.00381285]
[1736821934296,0.1102893,95179.0,95176.0,0.00381285]
[1736821934473,0.1102893,95179.0,95177.0,0.00381285]
[1736821935427,0.1112893,95179.0,95166.0,0.50381285]
[1736821935645,0.15,95178.0,95166.0,0.5]
[1736821935846,0.210151,95170.0,95166.0,0.5]
[1736821936065,0.210154,95168.0,95166.0,0.5]
[1736821936297,0.10980384,95167.0,95166.0,0.5]
[1736821936661,0.10980384,95167.0,95166.0,0.5008536]
[1736821938317,0.11480384,95167.0,95166.0,0.50466645]
[1736821938933,0.11080384,95167.0,95166.0,0.50466645]
[1736821939062,0.10980384,95167.0,95166.0,0.50466645]
[1736821939271,0.11180384,95167.0,95166.0,0.50466645]
[1736821939592,0.10980384,95167.0,95166.0,0.50466645]
[1736821939800,0.10980384,95167.0,95166.0,0.5008536]
[1736821939999,0.10980384,95167.0,95166.0,0.50466645]
[1736821940203,0.15,95184.0,95172.0,0.210144]
[1736821940410,0.10980384,95178.0,95172.0,0.497489]
[1736821940697,0.210081,95202.0,95178.0,0.00381285]
[1736821940899,0.210057,95212.0,95178.0,0.00486334]
[1736821941099,0.21007,95206.0,95178.0,0.49233662]
[1736821941311,0.210086,95200.0,95178.0,0.49614947]
[1736821941632,0.00188144,95179.0,95178.0,0.49614947]
[1736821941839,0.210082,95201.0,95192.0,0.00381285]
[1736821942037,0.15,95197.0,95192.0,0.00014617]
[1736821942263,0.210097,95194.0,95192.0,0.00014617]
[1736821942437,0.25980384,95193.0,95192.0,0.00014617]
[1736821942874,0.43810384,95193.0,95192.0,0.00014617]
[1736821943264,0.5558369,95193.0,95192.0,0.50014617]
[1736821944358,0.5788369,95193.0,95192.0,0.44274483]
[1736821944749,0.56952608,95193.0,95192.0,0.44274483]
[1736821944891,0.58500608,95193.0,95192.0,0.44274483]
[1736821945293,0.57300608,95193.0,95192.0,0.44274483]
[1736821945520,0.39281893,95193.0,95192.0,0.44274483]
[1736821945720,0.38633893,95193.0,95192.0,0.44274483]
[1736821945924,0.29903893,95193.0,95192.0,0.44274483]
[1736821946126,0.14203893,95193.0,95192.0,0.44274483]
[1736821946308,0.14903893,95193.0,95192.0,0.44274483]
[1736821946662,0.12749302,95193.0,95192.0,0.44274483]
[1736821946785,0.11680384,95193.0,95192.0,0.44274483]
[1736821947206,0.26680384,95193.0,95192.0,0.42974481]
[1736821947680,0.12580384,95193.0,95192.0,0.42974481]
[1736821947869,0.10980384,95193.0,95192.0,0.42974481]
[1736821948270,0.12080384,95193.0,95192.0,0.42974481]
[1736821948472,0.11480384,95193.0,95192.0,0.42974481]
[1736821948690,0.11159473,95193.0,95192.0,0.42974481]
[1736821948915,0.11659473,95193.0,95192.0,0.42974481]
[1736821949117,0.11359473,95193.0,95192.0,0.42974481]
[1736821949492,0.11959473,95193.0,95192.0,0.42974481]
[1736821949697,0.12259473,95193.0,95192.0,0.42974481]
[1736821950625,0.11459473,95193.0,95192.0,0.42974481]
[1736821951605,0.11159473,95193.0,95192.0,0.42974481]
[1736821951819,0.11659473,95193.0,95192.0,0.42974481]
[1736821952057,0.1642634,95193.0,95192.0,0.42974481]
[1736821952379,0.11259473,95193.0,95192.0,0.42974481]
[1736821952591,0.11659473,95193.0,95192.0,0.42974481]
[1736821952718,0.11559473,95193.0,95192.0,0.42974481]
[1736821952949,0.11659473,95193.0,95192.0,0.42974481]
[1736821953552,0.11559473,95193.0,95192.0,0.42974481]
[1736821953747,0.11159473,95193.0,95192.0,0.42974481]
[1736821954254,0.11559473,95193.0,95192.0,0.42974481]
[1736821954668,0.11159473,95193.0,95192.0,0.42974481]
[1736821954863,0.12059473,95193.0,95192.0,0.42974481]
[1736821955063,0.12359473,95193.0,95192.0,0.42974481]
[1736821955281,0.11459473,95193.0,95192.0,0.42974481]
[1736821955487,0.12359473,95193.0,95192.0,0.42974481]
[1736821955686,0.11459473,95193.0,95192.0,0.42974481]
[1736821955868,0.11159473,95193.0,95192.0,0.42974481]
[1736821956067,0.11459473,95193.0,95192.0,0.42974481]
[1736821956607,0.11159473,95193.0,95192.0,0.42974481]
[1736821957041,0.11459473,95193.0,95192.0,0.42974481]
[1736821957196,0.12259473,95193.0,95192.0,0.42974481]
[1736821957409,0.26459473,95193.0,95192.0,0.42974481]
[1736821957798,0.27259473,95193.0,95192.0,0.42974481]
[1736821958422,0.26959473,95193.0,95192.0,0.42974481]
[1736821958649,0.27259473,95193.0,95192.0,0.42974481]
[1736821958803,0.12259473,95193.0,95192.0,0.42974481]
[1736821959153,0.11159473,95193.0,95192.0,0.42974481]
[1736821959567,0.11459473,95193.0,95192.0,0.42974481]
[1736821959925,0.11159473,95193.0,95192.0,0.43059741]
[1736821960331,0.12059473,95193.0,95192.0,0.43059741]
[1736821960516,0.11359473,95193.0,95192.0,0.43059741]
[1736821961344,0.11859473,95193.0,95192.0,0.43059741]
[1736821961547,0.11659473,95193.0,95192.0,0.43059741]
[1736821961839,0.11459473,95193.0,95192.0,0.43059741]
[1736821962038,0.12359473,95193.0,95192.0,0.43059741]
[1736821962605,0.12059473,95193.0,95192.0,0.43059741]
[1736821962843,0.12359473,95193.0,95192.0,0.43059741]
[1736821963254,0.22359473,95193.0,95192.0,0.43059741]
[1736821963464,0.22059473,95193.0,95192.0,0.43059741]
[1736821963829,0.21159473,95193.0,95192.0,0.43059741]
[1736821964144,0.12059473,95193.0,95192.0,0.43059741]
[1736821964631,0.11159473,95193.0,95192.0,0.43059741]
[1736821964865,0.12459473,95193.0,95192.0,0.43059741]
[1736821965109,0.11559473,95193.0,95192.0,0.43059741]
[1736821965607,0.12459473,95193.0,95192.0,0.43059741]
[1736821966051,0.12059473,95193.0,95192.0,0.43059741]
[1736821966303,0.11559473,95193.0,95192.0,0.43059741]
[1736821966789,0.11159473,95193.0,95192.0,0.43059741]
[1736821967525,0.26159473,95193.0,95192.0,0.43059741]
[1736821967771,0.12059473,95193.0,95192.0,0.43059741]
[1736821967996,0.00179089,95193.0,95192.0,0.7368121]
[1736821968241,0.00979089,95193.0,95192.0,0.7368121]
[1736821968463,0.00579089,95193.0,95192.0,0.7368121]
[1736821968933,0.00879089,95193.0,95192.0,0.7368121]
[1736821969194,0.00179089,95193.0,95192.0,0.8124121]
[1736821969750,0.00179089,95193.0,95192.0,1.0899879]
[1736821970191,0.00179089,95193.0,95192.0,0.8124121]
[1736821970966,0.00279089,95193.0,95192.0,0.8134121]
[1736821971167,0.00279089,95193.0,95192.0,0.8124121]
[1736821971416,0.00279089,95193.0,95192.0,0.8134121]
[1736821971608,0.00379089,95193.0,95192.0,0.8164121]
[1736821972018,0.00379089,95193.0,95192.0,0.70394504]
[1736821972237,0.00379089,95193.0,95192.0,0.70094504]
[1736821972374,0.00379089,95193.0,95192.0,0.74603604]
[1736821974379,0.00379089,95193.0,95192.0,0.92995772]
[1736821974569,0.00179089,95193.0,95192.0,0.92895772]
[1736821974759,0.00279089,95193.0,95192.0,0.93095772]
[1736821975287,0.00279089,95193.0,95192.0,0.92995772]
[1736821975453,0.00279089,95193.0,95192.0,0.74303604]
[1736821975632,0.00279089,95193.0,95192.0,0.74603604]
[1736821978870,0.11259473,95193.0,95192.0,0.67043604]
[1736821979068,0.11159473,95193.0,95192.0,0.43059741]
[1736821979277,0.00179089,95193.0,95192.0,0.43641026]
[1736821979502,0.00279089,95193.0,95192.0,0.62734504]
[1736821979701,0.00279089,95193.0,95192.0,0.62634504]
[1736821979820,0.00279089,95193.0,95192.0,0.62434504]
[1736821980021,0.00279089,95193.0,95192.0,0.62534504]
[1736821981249,0.00279089,95193.0,95192.0,0.62434504]
[1736821981647,0.00279089,95193.0,95192.0,0.6356705]
[1736821981648,0.00179089,95193.0,95192.0,0.6356705]
[1736821981854,0.00179089,95193.0,95192.0,0.6346705]
[1736821982055,0.00179089,95193.0,95192.0,0.6366705]
[1736821982266,0.00279089,95193.0,95192.0,0.6376705]
[1736821982465,0.00279089,95193.0,95192.0,0.6366705]
[1736821982662,0.00279089,95193.0,95192.0,0.6346705]
[1736821982864,0.00379089,95193.0,95192.0,0.6356705]
[1736821983120,0.00179089,95193.0,95192.0,0.6346705]
[1736821983578,0.00179089,95193.0,95192.0,0.62634504]
[1736821984054,0.11159473,95193.0,95192.0,0.62253219]
[1736821984260,0.11159473,95193.0,95192.0,0.62634504]
[1736821984406,0.11159473,95193.0,95192.0,0.62253219]
[1736821984614,0.11259473,95193.0,95192.0,0.43741026]
[1736821984812,0.11159473,95193.0,95192.0,0.43059741]
[1736821985065,0.11159473,95193.0,95192.0,0.43441026]
[1736821985258,0.11159473,95193.0,95192.0,0.43741026]
[1736821985481,0.11159473,95193.0,95192.0,0.43641026]
[1736821985690,0.11159473,95193.0,95192.0,0.43259741]
[1736821985996,0.11159473,95193.0,95192.0,0.43541026]
[1736821986340,0.11159473,95193.0,95192.0,0.43641026]
[1736821986750,0.11159473,95193.0,95192.0,0.43259741]
[1736821987557,0.26159473,95193.0,95192.0,0.43259741]
[1736821988285,0.11159473,95193.0,95192.0,0.43059741]
[1736821988490,0.11559473,95193.0,95192.0,0.43059741]
[1736821988692,0.00779089,95193.0,95192.0,0.43059741]
[1736821988893,0.00379089,95193.0,95192.0,0.92674688]
[1736821989096,0.00679089,95193.0,95192.0,0.92674688]
[1736821989460,0.00379089,95193.0,95192.0,0.92674688]
[1736821989664,0.00879089,95193.0,95192.0,0.92674688]
[1736821990893,0.00179089,95193.0,95192.0,0.92674688]
[1736821991379,0.00279089,95193.0,95192.0,0.92774688]
[1736821991581,0.00179089,95193.0,95192.0,0.92674688]
[1736821991939,0.00279089,95193.0,95192.0,0.92974688]
[1736821992096,0.00179089,95193.0,95192.0,0.93935023]
[1736821992500,0.00279089,95193.0,95192.0,0.94035023]
[1736821995207,0.00279089,95193.0,95192.0,0.92974688]
[1736821996058,0.00279089,95193.0,95192.0,0.92774688]
[1736821997316,0.00179089,95193.0,95192.0,0.92674688]
[1736821997719,0.00279089,95193.0,95192.0,0.92874688]
[1736821998157,0.00179089,95193.0,95192.0,0.92674688]
[1736821998362,0.00279089,95193.0,95192.0,0.92674688]
[1736822000629,0.00179089,95193.0,95192.0,1.08594252]
[1736822000824,0.00279089,95193.0,95192.0,1.08594252]
[1736822001160,0.00179089,95193.0,95192.0,1.29574636]
[1736822001349,0.00279089,95193.0,95192.0,1.29674636]
[1736822001661,0.00279089,95193.0,95192.0,1.48266804]
[1736822001865,0.00379089,95193.0,95192.0,1.48466804]
[1736822002067,0.00479089,95193.0,95192.0,1.48566804]
[1736822002271,0.00379089,95193.0,95192.0,1.29674636]
[1736822002649,0.00479089,95193.0,95192.0,1.29874636]
[1736822002870,0.00279089,95193.0,95192.0,1.29774636]
[1736822003110,0.00279089,95193.0,95192.0,2.79774636]
[1736822003983,0.00179089,95193.0,95192.0,2.79574636]
[1736822004185,0.00279089,95193.0,95192.0,0.92774688]
[1736822004392,0.00279089,95193.0,95192.0,0.92874688]
[1736822004817,0.00279089,95193.0,95192.0,0.92774688]
[1736822005197,0.00279089,95193.0,95192.0,0.92874688]
[1736822005350,0.00379089,95193.0,95192.0,0.92974688]
[1736822005575,0.00279089,95193.0,95192.0,0.92874688]
[1736822005759,0.00179089,95193.0,95192.0,0.92674688]
[1736822005966,0.00179089,95193.0,95192.0,0.92874688]
[1736822007185,0.11159473,95193.0,95192.0,0.92493403]
[1736822007753,0.11159473,95193.0,95192.0,0.92293403]
[1736822008186,0.11259473,95193.0,95192.0,0.92293403]
[1736822008401,0.11159473,95193.0,95192.0,0.73299925]
[1736822008651,0.11359473,95193.0,95192.0,0.73299925]
[1736822009054,0.11259473,95193.0,95192.0,0.73299925]
[1736822010762,0.11259473,95193.0,95192.0,0.7368121]
[1736822011189,0.11359473,95193.0,95192.0,0.7368121]
[1736822011392,0.11159473,95193.0,95192.0,0.7368121]
[1736822011668,0.11259473,95193.0,95192.0,0.7368121]
[1736822011895,0.00179089,95193.0,95192.0,0.7368121]
[1736822012305,0.00479089,95193.0,95192.0,0.7368121]
[1736822012721,0.00279089,95193.0,95192.0,0.7368121]
[1736822012921,0.00179089,95193.0,95192.0,0.7368121]
[1736822013128,0.11159473,95193.0,95192.0,0.73299925]
[1736822013562,0.11159473,95193.0,95192.0,0.94310025]
[1736822014180,0.11159473,95193.0,95192.0,0.73299925]
[1736822014359,0.11259473,95193.0,95192.0,0.73299925]
[1736822014562,0.11159473,95193.0,95192.0,0.73399925]
[1736822014841,0.11359473,95193.0,95192.0,0.73399925]
[1736822015036,0.11359473,95193.0,95192.0,0.73299925]
[1736822015437,0.11459473,95193.0,95192.0,0.73299925]
[1736822016105,0.1144683,95193.0,95192.0,0.73299925]
[1736822016314,0.1114683,95193.0,95192.0,0.73299925]
[1736822018046,0.1144683,95193.0,95192.0,0.73299925]
[1736822018240,0.1134683,95193.0,95192.0,0.73299925]
[1736822018403,0.00166446,95193.0,95192.0,0.7368121]
[1736822018741,0.00166446,95193.0,95192.0,0.7388121]
[1736822019323,0.00166446,95193.0,95192.0,0.7378121]
[1736822019528,0.00166446,95193.0,95192.0,0.7368121]
[1736822019732,0.00166446,95193.0,95192.0,0.7378121]
[1736822019932,0.1114683,95193.0,95192.0,0.7378121]
[1736822020339,0.1114683,95193.0,95192.0,0.73399925]
[1736822020857,0.1114683,95193.0,95192.0,0.73299925]
[1736822021100,0.1114683,95193.0,95192.0,0.73399925]
[1736822022022,0.1114683,95193.0,95192.0,0.73499925]
[1736822022446,0.1114683,95193.0,95192.0,0.73399925]
[1736822022672,0.1144683,95193.0,95192.0,0.73299925]
[1736822023044,0.1154683,95193.0,95192.0,0.73299925]
[1736822023633,0.2654683,95193.0,95192.0,0.43059741]
[1736822023995,0.2624683,95193.0,95192.0,0.43059741]
[1736822024333,0.3405683,95193.0,95192.0,0.43059741]
[1736822024581,0.3385683,95193.0,95192.0,0.43059741]
[1736822024757,0.34989765,95193.0,95192.0,0.43059741]
[1736822025055,0.45289765,95193.0,95192.0,0.43059741]
[1736822025385,0.6986791,95193.0,95192.0,0.43059741]
[1736822025584,0.6016848,95193.0,95192.0,0.43059741]
[1736822025735,0.5966848,95193.0,95192.0,0.43059741]
[1736822025940,0.5946848,95193.0,95192.0,0.43059741]
[1736822026303,0.6176848,95193.0,95192.0,0.43059741]
[1736822026451,0.6176848,95193.0,95192.0,0.41759739]
[1736822026859,0.6226848,95193.0,95192.0,0.41759739]
[1736822027281,0.6316848,95193.0,95192.0,0.41759739]
[1736822027479,0.6226848,95193.0,95192.0,0.41759739]
[1736822027826,0.6316848,95193.0,95192.0,0.41759739]
[1736822028241,0.6266848,95193.0,95192.0,0.41759739]
[1736822028787,0.6336848,95193.0,95192.0,0.41759739]
[1736822029444,0.53749765,95193.0,95192.0,0.41759739]
[1736822029643,0.6336848,95193.0,95192.0,0.41759739]
[1736822029847,0.6266848,95193.0,95192.0,0.41759739]
[1736822030031,0.5106848,95193.0,95192.0,0.41759739]
[1736822030269,0.6016848,95193.0,95192.0,0.41759739]
[1736822030657,0.6106848,95193.0,95192.0,0.41759739]
[1736822031312,0.7158791,95193.0,95192.0,0.40459737]
[1736822031476,0.6106848,95193.0,95192.0,0.40459737]
[1736822032886,0.6171248,95193.0,95192.0,0.40459737]
[1736822033278,0.6011248,95193.0,95192.0,0.40459737]
[1736822033680,0.6101248,95193.0,95192.0,0.40459737]
[1736822033916,0.6331248,95193.0,95192.0,0.40459737]
[1736822034529,0.7405631,95193.0,95192.0,0.40459737]
[1736822034761,0.7475631,95193.0,95192.0,0.40459737]
[1736822034988,0.6311248,95193.0,95192.0,0.40459737]
[1736822035159,0.6331248,95193.0,95192.0,0.40459737]
[1736822035664,0.6401248,95193.0,95192.0,0.40459737]
[1736822036065,0.6401248,95193.0,95192.0,0.1186123]
[1736822036318,0.7482631,95193.0,95192.0,0.1081139]
[1736822036468,0.7482631,95193.0,95192.0,0.09511388]
[1736822037091,0.6401248,95193.0,95192.0,0.02004388]
[1736822037512,0.6311248,95193.0,95192.0,0.02004388]
[1736822037816,0.6331248,95193.0,95192.0,0.02004388]
[1736822037962,0.360156,95167.0,95151.0,0.0147749]
[1736822038164,0.46995984,95167.0,95166.0,0.00133906]
[1736822039583,0.47195984,95167.0,95166.0,0.00133906]
[1736822040201,0.47795984,95167.0,95166.0,0.00133906]
[1736822040609,0.48867555,95167.0,95166.0,0.00133906]
[1736822041377,0.48867555,95167.0,95166.0,0.00124624]
[1736822043502,0.48867555,95167.0,95166.0,0.00115344]
[1736822044199,0.26780384,95167.0,95166.0,0.00115344]
[1736822045561,0.11780384,95167.0,95166.0,0.00115344]
[1736822046032,0.11780384,95167.0,95166.0,0.00496629]
[1736822046579,0.008,95167.0,95166.0,0.00496629]
[1736822046788,0.008,95167.0,95166.0,0.08761699]
[1736822046987,0.00166446,95193.0,95185.0,0.00381285]
[1736822047287,0.00166446,95193.0,95192.0,0.291701]
[1736822048260,0.00166446,95193.0,95192.0,0.29551385]
[1736822049086,0.00166446,95193.0,95192.0,0.34501385]
[1736822052873,0.1114683,95193.0,95192.0,0.341201]
[1736822053017,0.1114683,95193.0,95192.0,0.29551385]
[1736822053500,0.1114683,95193.0,95192.0,0.291701]
[1736822056716,0.1114683,95193.0,95192.0,0.29551385]
[1736822057480,0.00166446,95193.0,95192.0,0.29551385]
[1736822058725,0.1114683,95193.0,95192.0,0.29551385]
[1736822059032,0.1114683,95193.0,95192.0,0.21391385]
[1736822060878,0.1114683,95193.0,95192.0,0.24239039]
[1736822061828,0.1114683,95193.0,95192.0,0.23857754]
[1736822062025,0.1114683,95193.0,95192.0,0.02847654]
[1736822063391,0.1134683,95193.0,95192.0,0.02847654]
[1736822064564,0.12507259,95193.0,95192.0,0.02847654]
[1736822065044,0.12407259,95193.0,95192.0,0.02847654]
[1736822065455,0.1144683,95193.0,95192.0,0.02847654]
[1736822065660,0.2644683,95193.0,95192.0,0.02847654]
[1736822068679,0.1144683,95193.0,95192.0,0.02847654]
[1736822069776,0.1124683,95193.0,95192.0,0.02847654]
[1736822070336,0.1134683,95193.0,95192.0,0.02847654]
[1736822070739,0.1124683,95193.0,95192.0,0.02847654]
[1736822072542,0.1114683,95193.0,95192.0,0.02847654]
[1736822072924,0.1114683,95193.0,95192.0,0.02947654]
[1736822073098,0.1114683,95193.0,95192.0,0.02847654]
[1736822073803,0.1114683,95193.0,95192.0,0.02947654]
[1736822074222,0.1114683,95193.0,95192.0,0.02847654]
[1736822074635,0.1114683,95193.0,95192.0,0.02947654]
[1736822075006,0.1124683,95193.0,95192.0,0.02947654]
[1736822075842,0.1124683,95193.0,95192.0,0.02847654]
[1736822076273,0.1144683,95193.0,95192.0,0.02847654]
[1736822076521,0.1114683,95193.0,95192.0,0.02847654]
[1736822076722,0.1124683,95193.0,95192.0,0.02847654]
[1736822076856,0.1134683,95193.0,95192.0,0.02847654]
[1736822077057,0.1114683,95193.0,95192.0,0.02847654]
[1736822077461,0.1124683,95193.0,95192.0,0.02847654]
[1736822077662,0.1114683,95193.0,95192.0,0.02847654]
[1736822079267,0.1124683,95193.0,95192.0,0.02847654]
[1736822079584,0.1114683,95193.0,95192.0,0.02847654]
[1736822079792,0.1124683,95193.0,95192.0,0.02847654]
[1736822079970,0.1114683,95193.0,95192.0,0.02847654]
[1736822080451,0.1124683,95193.0,95192.0,0.02847654]
[1736822082741,0.1114683,95193.0,95192.0,0.02847654]
[1736822083252,0.1124683,95193.0,95192.0,0.02847654]
[1736822083918,0.11163587,95193.0,95192.0,0.02847654]
[1736822085818,0.11063587,95193.0,95192.0,0.02847654]
[1736822086020,0.11163587,95193.0,95192.0,0.02847654]
[1736822088902,0.11063587,95193.0,95192.0,0.02847654]
[1736822089028,0.26063587,95193.0,95192.0,0.02847654]
[1736822089238,0.26163587,95193.0,95192.0,0.02847654]
[1736822091295,0.31123587,95193.0,95192.0,0.02847654]
[1736822092135,0.31023587,95193.0,95192.0,0.02847654]
[1736822092332,0.32167587,95193.0,95192.0,0.02947654]
[1736822092740,0.34244991,95193.0,95192.0,0.02947654]
[1736822092977,0.34744991,95193.0,95192.0,0.02947654]
[1736822093633,0.33344991,95193.0,95192.0,0.02847654]
[1736822094042,0.34244991,95193.0,95192.0,0.02947654]
[1736822095082,0.34644991,95193.0,95192.0,0.02947654]
[1736822099578,0.34644991,95193.0,95192.0,0.03032934]
[1736822103401,0.27607587,95193.0,95192.0,0.03032934]
[1736822103613,0.12607587,95193.0,95192.0,0.03032934]
[1736822104591,0.12207587,95193.0,95192.0,0.03032934]
[1736822104777,0.11307587,95193.0,95192.0,0.02932934]
[1736822104970,0.11307587,95193.0,95192.0,0.03032934]
[1736822105175,0.12607587,95193.0,95192.0,0.03032934]
[1736822105375,0.11707587,95193.0,95192.0,0.02932934]
[1736822105622,0.11307587,95193.0,95192.0,0.02932934]
[1736822105821,0.00427203,95193.0,95192.0,0.02932934]
[1736822105999,0.00327203,95193.0,95192.0,0.02932934]
[1736822106640,0.00327203,95193.0,95192.0,0.11022934]
[1736822106842,0.00327203,95193.0,95192.0,0.11404219]
[1736822108431,0.00327203,95193.0,95192.0,0.11509259]
[1736822108747,0.00327203,95193.0,95192.0,0.1623925]
[1736822108948,0.00327203,95193.0,95192.0,0.16134219]
[1736822109328,0.00327203,95193.0,95192.0,0.16034219]
[1736822109529,0.00327203,95193.0,95192.0,0.16634219]
[1736822109968,0.00327203,95193.0,95192.0,0.16234219]
[1736822111060,0.00327203,95193.0,95192.0,0.16034219]
[1736822111259,0.00427203,95193.0,95192.0,0.16634219]
[1736822111466,0.00427203,95193.0,95192.0,0.16934219]
[1736822113281,0.00427203,95193.0,95192.0,0.66167881]
[1736822114410,0.00327203,95193.0,95192.0,0.65567881]
[1736822114611,0.00427203,95193.0,95192.0,0.65867881]
[1736822115035,0.00427203,95193.0,95192.0,0.66167881]
[1736822115549,0.00327203,95193.0,95192.0,0.65267881]
[1736822115926,0.00327203,95193.0,95192.0,0.66067881]
[1736822116126,0.00327203,95193.0,95192.0,0.65567881]
[1736822116488,0.00427203,95193.0,95192.0,0.66167881]
[1736822117352,0.00427203,95193.0,95192.0,0.65867881]
[1736822117565,0.00427203,95193.0,95192.0,0.66167881]
[1736822117810,0.00327203,95193.0,95192.0,0.65567881]
[1736822118018,0.00327203,95193.0,95192.0,0.65967881]
[1736822118150,0.00327203,95193.0,95192.0,0.65667881]
[1736822118522,0.00327203,95193.0,95192.0,0.65467881]
[1736822118713,0.00327203,95193.0,95192.0,0.65867881]
[1736822119388,0.00327203,95193.0,95192.0,0.46874403]
[1736822125285,0.00327203,95193.0,95192.0,0.65867881]
[1736822126790,0.00327203,95193.0,95192.0,0.60856596]
[1736822126975,0.00327203,95193.0,95192.0,0.61237881]
[1736822131402,0.11307587,95193.0,95192.0,0.33773118]
[1736822131630,0.26307587,95193.0,95192.0,0.03532934]
[1736822131782,0.30887587,95193.0,95192.0,0.03532934]
[1736822131990,0.30887587,95193.0,95192.0,0.03332934]
[1736822132376,0.30887587,95193.0,95192.0,0.02932934]
[1736822132805,0.34454705,95193.0,95192.0,0.02932934]
[1736822133032,0.34054705,95193.0,95192.0,0.02932934]
[1736822134077,0.34454705,95193.0,95192.0,0.02932934]
[1736822134288,0.35354705,95193.0,95192.0,0.03032934]
[1736822134694,0.34954705,95193.0,95192.0,0.03032934]
[1736822134899,0.34054705,95193.0,95192.0,0.02932934]
[1736822135109,0.34454705,95193.0,95192.0,0.02932934]
[1736822135741,0.34954705,95193.0,95192.0,0.03032934]
[1736822135874,0.34054705,95193.0,95192.0,0.02932934]
[1736822136238,0.34954705,95193.0,95192.0,0.03032934]
[1736822137443,0.34054705,95193.0,95192.0,0.02932934]
[1736822137646,0.34454705,95193.0,95192.0,0.02932934]
[1736822137871,0.33231,95193.0,95192.0,0.03032934]
[1736822138215,0.32331,95193.0,95192.0,0.02932934]
[1736822138340,0.33231,95193.0,95192.0,0.03032934]
[1736822140632,0.28651,95193.0,95192.0,0.03032934]
[1736822140883,0.27607587,95193.0,95192.0,0.03032934]
[1736822141094,0.12607587,95193.0,95192.0,0.03032934]
[1736822141405,0.12207587,95193.0,95192.0,0.03032934]
[1736822141609,0.11607587,95193.0,95192.0,0.0356843]
[1736822142122,0.12407587,95193.0,95192.0,0.0366843]
[1736822142337,0.11307587,95193.0,95192.0,0.0356843]
[1736822142533,0.00327203,95193.0,95192.0,0.04049715]
[1736822142759,0.00927203,95193.0,95192.0,0.12339715]
[1736822143750,0.01227203,95193.0,95192.0,0.12339715]
[1736822143937,0.00627203,95193.0,95192.0,0.12239715]
[1736822144182,0.00327203,95193.0,95192.0,0.12239715]
[1736822144383,0.00427203,95193.0,95192.0,0.12239715]
[1736822144583,0.00327203,95193.0,95192.0,0.12239715]
[1736822145539,0.11294944,95193.0,95192.0,0.0356843]
[1736822154241,0.11211428,95193.0,95192.0,0.0356843]
[1736822157293,0.11490517,95193.0,95192.0,0.0356843]
[1736822159051,0.00510133,95193.0,95192.0,0.03949715]
[1736822160047,0.00410133,95193.0,95192.0,0.03949715]
[1736822160465,0.00410133,95193.0,95192.0,0.04249715]
[1736822161104,0.00410133,95193.0,95192.0,0.04349715]
[1736822161669,0.11390517,95193.0,95192.0,0.0396843]
[1736822162633,0.11390517,95193.0,95192.0,0.0356843]
[1736822162747,0.11390517,95193.0,95192.0,0.0366843]
[1736822162961,0.11490517,95193.0,95192.0,0.0366843]
[1736822163368,0.11490517,95193.0,95192.0,0.0356843]
[1736822164997,0.11490517,95193.0,95192.0,0.03949715]
[1736822165755,0.11390517,95193.0,95192.0,0.03949715]
[1736822165955,0.11390517,95193.0,95192.0,0.0356843]
[1736822166132,0.11390517,95193.0,95192.0,0.0366843]
[1736822166516,0.11390517,95193.0,95192.0,0.03949715]
[1736822166736,0.11390517,95193.0,95192.0,0.04149715]
[1736822167137,0.11390517,95193.0,95192.0,0.03949715]
[1736822167378,0.11490517,95193.0,95192.0,0.03949715]
[1736822168814,0.11390517,95193.0,95192.0,0.03949715]
[1736822170314,0.11390517,95193.0,95192.0,0.0356843]
[1736822170969,0.11390517,95193.0,95192.0,0.03949715]
[1736822172768,0.11490517,95193.0,95192.0,0.03949715]
[1736822173156,0.11490517,95193.0,95192.0,0.0356843]
[1736822177157,0.11390517,95193.0,95192.0,0.0356843]
[1736822177350,0.11490517,95193.0,95192.0,0.0356843]
[1736822178840,0.11390517,95193.0,95192.0,0.0356843]
[1736822179246,0.11490517,95193.0,95192.0,0.0356843]
[1736822181448,0.26490517,95193.0,95192.0,0.0356843]
[1736822182488,0.26390517,95193.0,95192.0,0.0356843]
[1736822182709,0.35480517,95193.0,95192.0,0.0366843]
[1736822182915,0.45099232,95193.0,95192.0,0.0366843]
[1736822183089,0.49179232,95193.0,95192.0,0.02932934]
[1736822183421,0.49579232,95193.0,95192.0,0.03032934]
[1736822184213,0.49879232,95193.0,95192.0,0.03032934]
[1736822185009,0.49179232,95193.0,95192.0,0.02932934]
[1736822185192,0.50079232,95193.0,95192.0,0.02932934]
[1736822185395,0.49779232,95193.0,95192.0,0.02932934]
[1736822185591,0.48879232,95193.0,95192.0,0.02932934]
[1736822185832,0.49279232,95193.0,95192.0,0.02932934]
[1736822185997,0.50179232,95193.0,95192.0,0.02932934]
[1736822186200,0.49779232,95193.0,95192.0,0.02932934]
[1736822186543,0.50179232,95193.0,95192.0,0.02932934]
[1736822187143,0.50179232,95193.0,95192.0,0.01632932]
[1736822187383,0.40560517,95193.0,95192.0,0.01632932]
[1736822188651,0.50179232,95193.0,95192.0,0.01632932]
[1736822191340,0.40560517,95193.0,95192.0,0.0033293]
[1736822191544,0.27690517,95193.0,95192.0,0.0033293]
[1736822196425,0.15,95192.0,95169.0,0.07594213]
[1736822196633,0.21013,95180.0,95169.0,0.07594213]
[1736822196855,0.10980384,95179.0,95170.0,0.00639425]
[1736822197118,0.10980384,95179.0,95169.0,0.07594213]
[1736822197580,0.10980384,95179.0,95170.0,0.00639425]
[1736822197907,0.10980384,95179.0,95170.0,0.00456146]
[1736822198137,0.10980384,95179.0,95169.0,0.07594213]
[1736822198562,0.10980384,95179.0,95170.0,0.00456146]
[1736822199023,0.210132,95178.0,95169.0,0.07594213]
[1736822199240,0.210137,95176.0,95169.0,0.07212928]
[1736822199487,0.10980384,95175.0,95170.0,0.00456146]
[1736822199750,0.10980384,95175.0,95169.0,0.07212928]
[1736822200231,0.10980384,95175.0,95170.0,0.00456146]
[1736822200704,0.10980384,95175.0,95171.0,0.00456316]
[1736822201187,0.210141,95174.0,95169.0,0.07212928]
[1736822201399,0.210141,95174.0,95172.0,0.00456485]
[1736822201400,0.25980384,95173.0,95172.0,0.00456485]
[1736822201702,0.210145,95172.0,95167.0,0.0008528]
[1736822202002,0.10980384,95171.0,95167.0,0.0008528]
[1736822203132,0.21015,95170.0,95167.0,0.0008528]
[1736822203247,0.10980384,95169.0,95167.0,0.0008528]
[1736822208418,0.210154,95168.0,95167.0,0.0008528]
[1736822208648,0.10980384,95168.0,95167.0,0.0008528]
[1736822211344,0.10980384,95168.0,95167.0,0.08646565]
[1736822211557,0.11380384,95168.0,95167.0,0.09286721]
[1736822212062,0.11080384,95168.0,95167.0,0.09286721]
[1736822212229,0.11280384,95168.0,95167.0,0.09286721]
[1736822212391,0.11080384,95168.0,95167.0,0.09286721]
[1736822212591,0.10980384,95168.0,95167.0,0.09286721]
[1736822213802,0.10980384,95168.0,95167.0,0.00725436]
[1736822214252,0.10980384,95168.0,95167.0,0.0008528]
[1736822215552,0.11480384,95168.0,95167.0,0.0008528]
[1736822215759,0.1251903,95168.0,95167.0,0.0008528]
[1736822215960,0.1201903,95168.0,95167.0,0.0008528]